[Event "Titled Tuesday Blitz July 11 Early 2023"]
[White "rionelG"]
[Black "Thecourseoisildur"]
[WhiteElo "2257"]
[BlackElo "2524"]
[Result "0-1"]
[Round "10"]
[TimeControl "180+2"]
[Date "2023.07.11"]
[WhiteClock "0:00:42"]
[BlackClock "0:00:17"]
[Board "130"]

1. e4 {[%clk 0:02:39]}  c5 {[%clk 0:02:57]} 2. g3 {[%clk 0:02:39]}  d5 {[%clk 0:02:55]} 3. exd5 {[%clk 0:02:40]}  Qxd5 {[%clk 0:02:54]} 4. Nf3 {[%clk 0:02:40]}  Bg4 {[%clk 0:02:52]} 5. Bg2 {[%clk 0:02:41]}  Qe6+ {[%clk 0:02:53]} 6. Kf1 {[%clk 0:02:41]}  Nc6 {[%clk 0:02:51]} 7. h3 {[%clk 0:02:42]}  Bh5 {[%clk 0:02:49]} 8. d3 {[%clk 0:02:42]}  Qd7 {[%clk 0:02:49]} 9. Nc3 {[%clk 0:02:43]}  Nf6 {[%clk 0:02:46]} 10. g4 {[%clk 0:02:42]}  Bg6 {[%clk 0:02:44]} 11. Bf4 {[%clk 0:02:43]}  e6 {[%clk 0:02:41]} 12. Ne5 {[%clk 0:02:43]}  Nxe5 {[%clk 0:02:38]} 13. Bxe5 {[%clk 0:02:44]}  Be7 {[%clk 0:02:36]} 14. Qf3 {[%clk 0:02:43]}  O-O {[%clk 0:02:21]} 15. Qxb7 {[%clk 0:02:40]}  Qxb7 {[%clk 0:02:19]} 16. Bxb7 {[%clk 0:02:40]}  Rab8 {[%clk 0:02:20]} 17. Bxb8 {[%clk 0:02:37]}  Rxb8 {[%clk 0:02:21]} 18. Bf3 {[%clk 0:02:17]}  Rxb2 {[%clk 0:02:22]} 19. Rc1 {[%clk 0:02:17]}  c4 {[%clk 0:01:54]} 20. dxc4 {[%clk 0:02:16]}  Bb4 {[%clk 0:01:52]} 21. Nb5 {[%clk 0:02:10]}  Bxc2 {[%clk 0:01:45]} 22. Kg2 {[%clk 0:02:05]}  Bc5 {[%clk 0:01:37]} 23. Nc3 {[%clk 0:01:19]}  Bd3 {[%clk 0:01:34]} 24. Na4 {[%clk 0:01:19]}  Rxf2+ {[%clk 0:01:31]} 25. Kg3 {[%clk 0:01:19]}  Be3 {[%clk 0:00:29]} 26. Rc3 {[%clk 0:01:07]}  Rd2 {[%clk 0:00:21]} 27. Nc5 {[%clk 0:01:00]}  Bxc5 {[%clk 0:00:20]} 28. Rb3 {[%clk 0:00:47]}  g5 {[%clk 0:00:18]} 29. Rd1 {[%clk 0:00:42]}  Bd6# {[%clk 0:00:17]} 0-1


[Site "https://www.chess.com"]

[Event "Titled Tuesday Blitz July 11 Early 2023"]
[White "Balla, Tamas-Kristof"]
[Black "Novikova, Margarita"]
[WhiteFideId "1208497"]
[BlackFideId "14109689"]
[WhiteElo "2431"]
[BlackElo "2192"]
[Result "0-1"]
[Round "10"]
[TimeControl "180+2"]
[Date "2023.07.11"]
[WhiteClock "0:00:20"]
[BlackClock "0:01:14"]
[Board "133"]

1. e4 {[%clk 0:02:58]}  d5 {[%clk 0:02:58]} 2. exd5 {[%clk 0:02:58]}  Qxd5 {[%clk 0:02:58]} 3. Nc3 {[%clk 0:02:58]}  Qd6 {[%clk 0:02:58]} 4. d4 {[%clk 0:02:58]}  Nf6 {[%clk 0:02:58]} 5. Nf3 {[%clk 0:02:58]}  c6 {[%clk 0:02:58]} 6. Ne5 {[%clk 0:02:58]}  Nbd7 {[%clk 0:02:57]} 7. Nc4 {[%clk 0:02:58]}  Qc7 {[%clk 0:02:57]} 8. g3 {[%clk 0:02:50]}  Nb6 {[%clk 0:02:56]} 9. Bf4 {[%clk 0:02:49]}  Qd8 {[%clk 0:02:55]} 10. Ne5 {[%clk 0:02:49]}  e6 {[%clk 0:02:54]} 11. Bg2 {[%clk 0:02:48]}  Bd6 {[%clk 0:02:52]} 12. O-O {[%clk 0:02:48]}  Qc7 {[%clk 0:02:52]} 13. Ne4 {[%clk 0:02:25]}  Nxe4 {[%clk 0:02:51]} 14. Bxe4 {[%clk 0:02:25]}  Nd5 {[%clk 0:02:49]} 15. Qg4 {[%clk 0:01:51]}  Nxf4 {[%clk 0:02:36]} 16. gxf4 {[%clk 0:01:40]}  g6 {[%clk 0:02:04]} 17. Bg2 {[%clk 0:01:15]}  f6 {[%clk 0:02:02]} 18. Nd3 {[%clk 0:01:15]}  e5 {[%clk 0:02:00]} 19. Qe2 {[%clk 0:01:13]}  Bf5 {[%clk 0:01:48]} 20. dxe5 {[%clk 0:01:10]}  fxe5 {[%clk 0:01:48]} 21. fxe5 {[%clk 0:01:10]}  Be7 {[%clk 0:01:46]} 22. Rad1 {[%clk 0:01:00]}  O-O {[%clk 0:01:45]} 23. Rfe1 {[%clk 0:00:58]}  Bh4 {[%clk 0:01:39]} 24. e6 {[%clk 0:00:50]}  Bxd3 {[%clk 0:01:37]} 25. Qxd3 {[%clk 0:00:33]}  Bxf2+ {[%clk 0:01:36]} 26. Kh1 {[%clk 0:00:32]}  Bxe1 {[%clk 0:01:37]} 27. Rxe1 {[%clk 0:00:33]}  Qe7 {[%clk 0:01:36]} 28. Qb3 {[%clk 0:00:31]}  Rad8 {[%clk 0:01:32]} 29. c3 {[%clk 0:00:30]}  Kg7 {[%clk 0:01:28]} 30. Qc4 {[%clk 0:00:28]}  Rf2 {[%clk 0:01:25]} 31. h3 {[%clk 0:00:27]}  Rdd2 {[%clk 0:01:23]} 32. Be4 {[%clk 0:00:23]}  Rh2+ {[%clk 0:01:17]} 33. Kg1 {[%clk 0:00:23]}  Qg5+ {[%clk 0:01:16]} 34. Kf1 {[%clk 0:00:23]}  Qf4+ {[%clk 0:01:14]} 35. Kg1 {[%clk 0:00:20]}  Qf2# {[%clk 0:01:14]} 0-1


[Site "https://www.chess.com"]

[Event "Titled Tuesday Blitz July 11 Early 2023"]
[White "Schachpanda_Youtube"]
[Black "Llanos, Guillermo"]
[BlackFideId "100358"]
[WhiteElo "2185"]
[BlackElo "2375"]
[Result "1-0"]
[Round "10"]
[TimeControl "180+2"]
[Date "2023.07.11"]
[WhiteClock "0:00:50"]
[BlackClock "0:00:00"]
[Board "134"]

1. e4 {[%clk 0:03:00]}  Nf6 {[%clk 0:02:58]} 2. e5 {[%clk 0:02:59]}  Nd5 {[%clk 0:02:58]} 3. d4 {[%clk 0:02:59]}  d6 {[%clk 0:02:58]} 4. c4 {[%clk 0:02:59]}  Nb6 {[%clk 0:02:58]} 5. f4 {[%clk 0:02:59]}  dxe5 {[%clk 0:02:56]} 6. fxe5 {[%clk 0:02:57]}  Bf5 {[%clk 0:02:56]} 7. Nc3 {[%clk 0:02:54]}  e6 {[%clk 0:02:57]} 8. Be3 {[%clk 0:02:53]}  Bb4 {[%clk 0:02:55]} 9. Nf3 {[%clk 0:02:51]}  c5 {[%clk 0:02:52]} 10. Bd3 {[%clk 0:02:24]}  Bxd3 {[%clk 0:02:50]} 11. Qxd3 {[%clk 0:02:23]}  cxd4 {[%clk 0:02:43]} 12. Nxd4 {[%clk 0:02:16]}  Nc6 {[%clk 0:02:43]} 13. O-O-O {[%clk 0:02:02]}  O-O {[%clk 0:02:21]} 14. Nxc6 {[%clk 0:01:50]}  Qxd3 {[%clk 0:02:21]} 15. Rxd3 {[%clk 0:01:45]}  bxc6 {[%clk 0:02:21]} 16. b3 {[%clk 0:01:36]}  Nd7 {[%clk 0:02:15]} 17. Rxd7 {[%clk 0:01:29]}  Bxc3 {[%clk 0:02:15]} 18. Bd4 {[%clk 0:01:23]}  Bxd4 {[%clk 0:02:11]} 19. Rxd4 {[%clk 0:01:23]}  f6 {[%clk 0:01:48]} 20. Rd6 {[%clk 0:01:16]}  fxe5 {[%clk 0:01:48]} 21. Rxe6 {[%clk 0:01:16]}  Rf2 {[%clk 0:01:48]} 22. Rd1 {[%clk 0:01:11]}  Rxa2 {[%clk 0:01:46]} 23. Rxc6 {[%clk 0:01:03]}  Rxg2 {[%clk 0:00:00]} 24. Rc7 {[%clk 0:00:50]} 1-0


[Site "https://www.chess.com"]

[Event "Titled Tuesday Blitz July 11 Early 2023"]
[White "Barbot, Pierre"]
[Black "Roque Sola, Gisela"]
[WhiteFideId "663727"]
[BlackFideId "5120241"]
[WhiteElo "2344"]
[BlackElo "2154"]
[Result "1-0"]
[Round "10"]
[TimeControl "180+2"]
[Date "2023.07.11"]
[WhiteClock "0:00:29"]
[BlackClock "0:00:22"]
[Board "135"]

1. d4 {[%clk 0:02:56]}  Nf6 {[%clk 0:02:58]} 2. c4 {[%clk 0:02:55]}  g6 {[%clk 0:02:54]} 3. Nc3 {[%clk 0:02:53]}  d5 {[%clk 0:02:53]} 4. cxd5 {[%clk 0:02:52]}  Nxd5 {[%clk 0:02:54]} 5. e4 {[%clk 0:02:52]}  Nxc3 {[%clk 0:02:54]} 6. bxc3 {[%clk 0:02:53]}  Bg7 {[%clk 0:02:55]} 7. Bc4 {[%clk 0:02:53]}  O-O {[%clk 0:02:54]} 8. Ne2 {[%clk 0:02:42]}  c5 {[%clk 0:02:54]} 9. O-O {[%clk 0:02:29]}  Nc6 {[%clk 0:02:45]} 10. Be3 {[%clk 0:02:29]}  cxd4 {[%clk 0:02:39]} 11. cxd4 {[%clk 0:02:26]}  Qa5 {[%clk 0:02:40]} 12. Qc1 {[%clk 0:01:56]}  Rd8 {[%clk 0:02:34]} 13. Rd1 {[%clk 0:01:56]}  Bd7 {[%clk 0:02:14]} 14. Rb1 {[%clk 0:01:41]}  Rac8 {[%clk 0:01:56]} 15. Rxb7 {[%clk 0:01:38]}  Nb4 {[%clk 0:01:50]} 16. Rxd7 {[%clk 0:01:36]}  Rxd7 {[%clk 0:01:39]} 17. Bxf7+ {[%clk 0:01:36]}  Kxf7 {[%clk 0:01:40]} 18. Qxc8 {[%clk 0:01:35]}  Rc7 {[%clk 0:01:35]} 19. Qg4 {[%clk 0:01:26]}  Qxa2 {[%clk 0:01:34]} 20. d5 {[%clk 0:01:16]}  Bf6 {[%clk 0:01:19]} 21. Bh6 {[%clk 0:01:12]}  Qa6 {[%clk 0:01:13]} 22. Nf4 {[%clk 0:01:08]}  Qd6 {[%clk 0:01:00]} 23. h4 {[%clk 0:01:03]}  Qd7 {[%clk 0:00:47]} 24. Ne6 {[%clk 0:00:45]}  Rb7 {[%clk 0:00:33]} 25. h5 {[%clk 0:00:44]}  a5 {[%clk 0:00:31]} 26. hxg6+ {[%clk 0:00:36]}  hxg6 {[%clk 0:00:32]} 27. Rc1 {[%clk 0:00:36]}  a4 {[%clk 0:00:30]} 28. Nd8+ {[%clk 0:00:30]}  Qxd8 {[%clk 0:00:27]} 29. Qe6+ {[%clk 0:00:30]}  Ke8 {[%clk 0:00:25]} 30. Rc8 {[%clk 0:00:30]}  a3 {[%clk 0:00:22]} 31. Qg8+ {[%clk 0:00:29]}  Kd7 {[%clk 0:00:22]} 32. Qxd8# {[%clk 0:00:29]} 1-0


[Site "https://www.chess.com"]

[Event "Titled Tuesday Blitz July 11 Early 2023"]
[White "AndresDelgado77"]
[Black "cycygogne"]
[WhiteElo "2296"]
[BlackElo "2122"]
[Result "1-0"]
[Round "10"]
[TimeControl "180+2"]
[Date "2023.07.11"]
[WhiteClock "0:00:53"]
[BlackClock "0:00:28"]
[Board "138"]

1. Nc3 {[%clk 0:03:00]}  c5 {[%clk 0:02:54]} 2. Nf3 {[%clk 0:02:52]}  g6 {[%clk 0:02:53]} 3. d4 {[%clk 0:02:42]}  Bg7 {[%clk 0:02:53]} 4. dxc5 {[%clk 0:02:40]}  Na6 {[%clk 0:02:49]} 5. Be3 {[%clk 0:02:34]}  Nf6 {[%clk 0:02:46]} 6. Bd4 {[%clk 0:02:29]}  O-O {[%clk 0:02:45]} 7. a3 {[%clk 0:02:25]}  Qc7 {[%clk 0:02:36]} 8. b4 {[%clk 0:02:22]}  b6 {[%clk 0:02:36]} 9. Be5 {[%clk 0:01:57]}  Qb7 {[%clk 0:02:18]} 10. cxb6 {[%clk 0:01:50]}  Qxb6 {[%clk 0:02:06]} 11. e3 {[%clk 0:01:40]}  d6 {[%clk 0:01:54]} 12. Bxf6 {[%clk 0:01:34]}  Bxf6 {[%clk 0:01:52]} 13. Nd5 {[%clk 0:01:32]}  Qc6 {[%clk 0:01:11]} 14. Nxf6+ {[%clk 0:01:22]}  exf6 {[%clk 0:01:10]} 15. Qd4 {[%clk 0:01:05]}  Qxc2 {[%clk 0:00:44]} 16. Bd3 {[%clk 0:01:04]}  Qc7 {[%clk 0:00:45]} 17. Qxf6 {[%clk 0:01:01]}  Be6 {[%clk 0:00:28]} 18. Bxa6 {[%clk 0:00:53]} 1-0


[Site "https://www.chess.com"]

[Event "Titled Tuesday Blitz July 11 Early 2023"]
[White "Clawitter, Craig"]
[Black "Winkels, Marcel"]
[WhiteFideId "2023105"]
[BlackFideId "1003887"]
[WhiteElo "2294"]
[BlackElo "2114"]
[Result "1-0"]
[Round "10"]
[TimeControl "180+2"]
[Date "2023.07.11"]
[WhiteClock "0:01:24"]
[BlackClock "0:01:19"]
[Board "139"]

1. e4 {[%clk 0:03:00]}  c5 {[%clk 0:03:00]} 2. Nf3 {[%clk 0:03:00]}  e6 {[%clk 0:03:01]} 3. d4 {[%clk 0:02:59]}  cxd4 {[%clk 0:03:01]} 4. Nxd4 {[%clk 0:03:00]}  Nc6 {[%clk 0:03:01]} 5. Nc3 {[%clk 0:03:00]}  Qc7 {[%clk 0:03:01]} 6. Be3 {[%clk 0:02:59]}  a6 {[%clk 0:03:01]} 7. Qd2 {[%clk 0:02:58]}  Nf6 {[%clk 0:02:59]} 8. O-O-O {[%clk 0:02:59]}  Be7 {[%clk 0:02:53]} 9. f3 {[%clk 0:02:53]}  Nxd4 {[%clk 0:02:51]} 10. Qxd4 {[%clk 0:02:47]}  b5 {[%clk 0:02:52]} 11. g4 {[%clk 0:02:43]}  Bb7 {[%clk 0:02:49]} 12. g5 {[%clk 0:02:16]}  Nh5 {[%clk 0:02:48]} 13. Be2 {[%clk 0:02:17]}  b4 {[%clk 0:02:41]} 14. Na4 {[%clk 0:02:14]}  Rc8 {[%clk 0:02:36]} 15. Rd2 {[%clk 0:02:05]}  d6 {[%clk 0:02:11]} 16. f4 {[%clk 0:01:55]}  g6 {[%clk 0:02:08]} 17. Qxh8+ {[%clk 0:01:54]}  Bf8 {[%clk 0:02:07]} 18. Bxh5 {[%clk 0:01:45]}  gxh5 {[%clk 0:02:06]} 19. Qxh7 {[%clk 0:01:44]}  Bc6 {[%clk 0:02:00]} 20. Nb6 {[%clk 0:01:37]}  Rb8 {[%clk 0:01:59]} 21. g6 {[%clk 0:01:32]}  Bxe4 {[%clk 0:01:49]} 22. gxf7+ {[%clk 0:01:28]}  Ke7 {[%clk 0:01:19]} 23. Qxe4 {[%clk 0:01:24]} 1-0


[Site "https://www.chess.com"]

[Event "Titled Tuesday Blitz July 11 Early 2023"]
[White "Blokhin, Sofia"]
[Black "Johnson, Ben"]
[WhiteFideId "4508190"]
[BlackFideId "2010917"]
[WhiteElo "2289"]
[BlackElo "2118"]
[Result "1-0"]
[Round "10"]
[TimeControl "180+2"]
[Date "2023.07.11"]
[WhiteClock "0:00:36"]
[BlackClock "0:00:01"]
[Board "140"]

1. e4 {[%clk 0:03:00]}  c5 {[%clk 0:02:59]} 2. Nf3 {[%clk 0:02:59]}  g6 {[%clk 0:03:00]} 3. d4 {[%clk 0:02:59]}  cxd4 {[%clk 0:03:00]} 4. Nxd4 {[%clk 0:02:59]}  Nf6 {[%clk 0:02:56]} 5. Nc3 {[%clk 0:02:57]}  Nc6 {[%clk 0:02:56]} 6. Be3 {[%clk 0:02:54]}  Bg7 {[%clk 0:02:54]} 7. Nb3 {[%clk 0:02:52]}  a5 {[%clk 0:02:51]} 8. Na4 {[%clk 0:02:47]}  d6 {[%clk 0:02:31]} 9. Nb6 {[%clk 0:02:39]}  Rb8 {[%clk 0:02:31]} 10. f3 {[%clk 0:02:30]}  O-O {[%clk 0:02:20]} 11. Nxc8 {[%clk 0:02:27]}  Qxc8 {[%clk 0:02:18]} 12. a4 {[%clk 0:02:26]}  Ne5 {[%clk 0:01:58]} 13. Nxa5 {[%clk 0:02:16]}  b6 {[%clk 0:01:46]} 14. Nb3 {[%clk 0:02:13]}  Nc4 {[%clk 0:01:46]} 15. Bxc4 {[%clk 0:02:10]}  Qxc4 {[%clk 0:01:46]} 16. Qd3 {[%clk 0:02:09]}  Qc6 {[%clk 0:01:05]} 17. Nd4 {[%clk 0:02:05]}  Qd7 {[%clk 0:00:43]} 18. O-O {[%clk 0:02:02]}  Rfc8 {[%clk 0:00:43]} 19. Rfc1 {[%clk 0:01:59]}  Nh5 {[%clk 0:00:40]} 20. c3 {[%clk 0:01:46]}  Be5 {[%clk 0:00:38]} 21. Qb5 {[%clk 0:01:25]}  Qb7 {[%clk 0:00:29]} 22. g3 {[%clk 0:01:15]}  Ng7 {[%clk 0:00:17]} 23. Rcb1 {[%clk 0:01:10]}  h5 {[%clk 0:00:16]} 24. a5 {[%clk 0:01:06]}  Rc5 {[%clk 0:00:15]} 25. a6 {[%clk 0:01:03]}  Rxb5 {[%clk 0:00:13]} 26. axb7 {[%clk 0:01:02]}  Rc5 {[%clk 0:00:10]} 27. Ra8 {[%clk 0:00:59]}  d5 {[%clk 0:00:10]} 28. f4 {[%clk 0:00:48]}  Bc7 {[%clk 0:00:05]} 29. Rba1 {[%clk 0:00:41]}  Kh7 {[%clk 0:00:05]} 30. Rxb8 {[%clk 0:00:40]}  Bxb8 {[%clk 0:00:05]} 31. Ra8 {[%clk 0:00:40]}  Bc7 {[%clk 0:00:05]} 32. Rc8 {[%clk 0:00:37]}  dxe4 {[%clk 0:00:04]} 33. Rxc7 {[%clk 0:00:36]}  Rxc7 {[%clk 0:00:01]} 34. b8=Q {[%clk 0:00:36]} 1-0


[Site "https://www.chess.com"]

[Event "Titled Tuesday Blitz July 11 Early 2023"]
[White "Mikhaylova, Irina"]
[Black "abelmat"]
[WhiteFideId "4109040"]
[WhiteElo "2282"]
[BlackElo "1973"]
[Result "1/2-1/2"]
[Round "10"]
[TimeControl "180+2"]
[Date "2023.07.11"]
[WhiteClock "0:01:05"]
[BlackClock "0:01:34"]
[Board "141"]

1. Nf3 {[%clk 0:03:00]}  Nf6 {[%clk 0:02:57]} 2. d4 {[%clk 0:03:01]}  d5 {[%clk 0:02:57]} 3. c4 {[%clk 0:03:01]}  e6 {[%clk 0:02:56]} 4. Nc3 {[%clk 0:03:01]}  Be7 {[%clk 0:02:56]} 5. Bg5 {[%clk 0:03:01]}  Nbd7 {[%clk 0:02:56]} 6. e3 {[%clk 0:03:00]}  h6 {[%clk 0:02:57]} 7. Bh4 {[%clk 0:03:01]}  O-O {[%clk 0:02:57]} 8. Qc2 {[%clk 0:03:00]}  a6 {[%clk 0:02:58]} 9. a3 {[%clk 0:03:00]}  dxc4 {[%clk 0:02:57]} 10. Bxc4 {[%clk 0:02:59]}  b5 {[%clk 0:02:57]} 11. Ba2 {[%clk 0:02:59]}  Bb7 {[%clk 0:02:57]} 12. Rd1 {[%clk 0:03:00]}  Bxf3 {[%clk 0:02:54]} 13. gxf3 {[%clk 0:03:00]}  Rc8 {[%clk 0:02:48]} 14. b4 {[%clk 0:02:48]}  c6 {[%clk 0:02:30]} 15. O-O {[%clk 0:02:08]}  Nd5 {[%clk 0:02:23]} 16. Bg3 {[%clk 0:01:57]}  a5 {[%clk 0:02:19]} 17. Nxd5 {[%clk 0:01:54]}  cxd5 {[%clk 0:02:18]} 18. Qb2 {[%clk 0:01:45]}  axb4 {[%clk 0:02:10]} 19. axb4 {[%clk 0:01:44]}  Nb6 {[%clk 0:02:10]} 20. Rb1 {[%clk 0:01:23]}  Nc4 {[%clk 0:02:04]} 21. Bxc4 {[%clk 0:01:22]}  bxc4 {[%clk 0:01:58]} 22. b5 {[%clk 0:01:22]}  Bd6 {[%clk 0:01:58]} 23. Bxd6 {[%clk 0:01:17]}  Qxd6 {[%clk 0:01:58]} 24. Qb4 {[%clk 0:01:17]}  Qd8 {[%clk 0:01:46]} 25. b6 {[%clk 0:01:16]}  Rb8 {[%clk 0:01:45]} 26. b7 {[%clk 0:01:05]}  Qg5+ {[%clk 0:01:42]} 27. Kh1 {[%clk 0:01:04]}  Qh5 {[%clk 0:01:38]} 28. Kg2 {[%clk 0:01:04]}  Qg5+ {[%clk 0:01:37]} 29. Kh1 {[%clk 0:01:05]}  Qh5 {[%clk 0:01:35]} 30. Kg2 {[%clk 0:01:05]}  Qg5+ {[%clk 0:01:34]} 31. Kh1 {[%clk 0:01:05]} 1/2-1/2


[Site "https://www.chess.com"]

[Event "Titled Tuesday Blitz July 11 Early 2023"]
[White "Szente Varga, Fruzsina"]
[Black "Thiel, Thomas"]
[WhiteFideId "712264"]
[BlackFideId "4615964"]
[WhiteElo "2307"]
[BlackElo "2217"]
[Result "0-1"]
[Round "10"]
[TimeControl "180+2"]
[Date "2023.07.11"]
[WhiteClock "0:01:45"]
[BlackClock "0:02:25"]
[Board "143"]

1. e4 {[%clk 0:03:00]}  d5 {[%clk 0:02:59]} 2. exd5 {[%clk 0:03:00]}  Nf6 {[%clk 0:02:59]} 3. Nc3 {[%clk 0:02:58]}  Nxd5 {[%clk 0:02:58]} 4. Nxd5 {[%clk 0:02:58]}  Qxd5 {[%clk 0:02:56]} 5. d4 {[%clk 0:02:59]}  Nc6 {[%clk 0:02:54]} 6. Nf3 {[%clk 0:02:59]}  Bg4 {[%clk 0:02:53]} 7. c3 {[%clk 0:02:59]}  O-O-O {[%clk 0:02:51]} 8. Be2 {[%clk 0:02:56]}  e5 {[%clk 0:02:51]} 9. dxe5 {[%clk 0:02:37]}  Qxd1+ {[%clk 0:02:48]} 10. Bxd1 {[%clk 0:02:37]}  Nxe5 {[%clk 0:02:47]} 11. Bf4 {[%clk 0:02:20]}  Nd3+ {[%clk 0:02:46]} 12. Kf1 {[%clk 0:02:13]}  Nxf4 {[%clk 0:02:45]} 13. Bb3 {[%clk 0:02:10]}  Be6 {[%clk 0:02:42]} 14. c4 {[%clk 0:02:07]}  Bc5 {[%clk 0:02:32]} 15. a3 {[%clk 0:01:57]}  Nd3 {[%clk 0:02:29]} 16. Ng5 {[%clk 0:01:54]}  Nxf2 {[%clk 0:02:28]} 17. Nxe6 {[%clk 0:01:52]}  fxe6 {[%clk 0:02:26]} 18. Rg1 {[%clk 0:01:45]}  Rd2 {[%clk 0:02:25]} 0-1


[Site "https://www.chess.com"]

[Event "Titled Tuesday Blitz July 11 Early 2023"]
[White "Ho, In Hei Henry"]
[Black "Liu, Casper"]
[WhiteFideId "6002552"]
[BlackFideId "1454153"]
[WhiteElo "2139"]
[BlackElo "2489"]
[Result "0-1"]
[Round "10"]
[TimeControl "180+2"]
[Date "2023.07.11"]
[WhiteClock "0:00:00"]
[BlackClock "0:00:50"]
[Board "146"]

1. e4 {[%clk 0:03:00]}  g5 {[%clk 0:02:56]} 2. d4 {[%clk 0:03:00]}  h6 {[%clk 0:02:56]} 3. Nc3 {[%clk 0:02:59]}  Bg7 {[%clk 0:02:56]} 4. Bc4 {[%clk 0:02:59]}  a6 {[%clk 0:02:56]} 5. Be3 {[%clk 0:02:59]}  b5 {[%clk 0:02:55]} 6. Bd3 {[%clk 0:02:58]}  Bb7 {[%clk 0:02:55]} 7. f3 {[%clk 0:02:57]}  Nc6 {[%clk 0:02:52]} 8. Nce2 {[%clk 0:02:55]}  d5 {[%clk 0:02:49]} 9. Nh3 {[%clk 0:02:46]}  Nb4 {[%clk 0:02:40]} 10. Nf2 {[%clk 0:02:42]}  e5 {[%clk 0:02:31]} 11. c3 {[%clk 0:02:39]}  Nxd3+ {[%clk 0:02:30]} 12. Qxd3 {[%clk 0:02:37]}  dxe4 {[%clk 0:02:31]} 13. fxe4 {[%clk 0:02:33]}  Nf6 {[%clk 0:02:31]} 14. d5 {[%clk 0:02:28]}  O-O {[%clk 0:02:30]} 15. O-O {[%clk 0:02:27]}  c6 {[%clk 0:02:26]} 16. d6 {[%clk 0:02:11]}  Nd7 {[%clk 0:02:21]} 17. c4 {[%clk 0:02:05]}  Qf6 {[%clk 0:02:11]} 18. c5 {[%clk 0:01:58]}  Qg6 {[%clk 0:02:07]} 19. b4 {[%clk 0:01:51]}  f5 {[%clk 0:02:03]} 20. Bd2 {[%clk 0:01:44]}  f4 {[%clk 0:02:02]} 21. Kh1 {[%clk 0:01:33]}  g4 {[%clk 0:02:00]} 22. Ng1 {[%clk 0:01:31]}  Qh5 {[%clk 0:01:54]} 23. h3 {[%clk 0:01:20]}  Nf6 {[%clk 0:01:42]} 24. Qe2 {[%clk 0:01:10]}  Bc8 {[%clk 0:01:35]} 25. Bc3 {[%clk 0:00:46]}  Qh4 {[%clk 0:01:18]} 26. Qb2 {[%clk 0:00:38]}  Nh5 {[%clk 0:01:09]} 27. Bxe5 {[%clk 0:00:23]}  Ng3+ {[%clk 0:01:07]} 28. Kh2 {[%clk 0:00:23]}  Nxf1+ {[%clk 0:01:07]} 29. Rxf1 {[%clk 0:00:23]}  g3+ {[%clk 0:01:06]} 30. Kh1 {[%clk 0:00:23]}  Bxe5 {[%clk 0:01:02]} 31. Qxe5 {[%clk 0:00:23]}  gxf2 {[%clk 0:01:03]} 32. Nf3 {[%clk 0:00:20]}  Qf6 {[%clk 0:01:04]} 33. Qh5 {[%clk 0:00:12]}  Ra7 {[%clk 0:01:02]} 34. e5 {[%clk 0:00:10]}  Qf5 {[%clk 0:01:03]} 35. Qxf5 {[%clk 0:00:09]}  Rh7 {[%clk 0:01:03]} 36. Rxf2 {[%clk 0:00:10]}  Bxf5 {[%clk 0:01:03]} 37. Re2 {[%clk 0:00:09]}  Be6 {[%clk 0:01:00]} 38. Nd4 {[%clk 0:00:09]}  Bc4 {[%clk 0:01:00]} 39. Re4 {[%clk 0:00:09]}  Bd5 {[%clk 0:00:56]} 40. Re1 {[%clk 0:00:10]}  Rg7 {[%clk 0:00:56]} 41. Re2 {[%clk 0:00:08]}  f3 {[%clk 0:00:55]} 42. gxf3 {[%clk 0:00:08]}  Rxf3 {[%clk 0:00:55]} 43. Nxf3 {[%clk 0:00:08]}  Bxf3+ {[%clk 0:00:56]} 44. Kh2 {[%clk 0:00:08]}  Bxe2 {[%clk 0:00:57]} 45. e6 {[%clk 0:00:07]}  Kf8 {[%clk 0:00:50]} 46. d7 {[%clk 0:00:00]}  Ke7 {[%clk 0:00:50]} 0-1


[Site "https://www.chess.com"]

[Event "Titled Tuesday Blitz July 11 Early 2023"]
[White "Kuchava, Ana"]
[Black "Horokoskii"]
[WhiteFideId "13605348"]
[WhiteElo "2239"]
[BlackElo "2133"]
[Result "1-0"]
[Round "10"]
[TimeControl "180+2"]
[Date "2023.07.11"]
[WhiteClock "0:00:45"]
[BlackClock "0:00:01"]
[Board "148"]

1. d4 {[%clk 0:03:00]}  Nf6 {[%clk 0:02:59]} 2. Nf3 {[%clk 0:03:00]}  g6 {[%clk 0:02:59]} 3. c4 {[%clk 0:03:00]}  Bg7 {[%clk 0:02:58]} 4. Nc3 {[%clk 0:03:01]}  O-O {[%clk 0:02:57]} 5. e4 {[%clk 0:03:01]}  d6 {[%clk 0:02:58]} 6. Be2 {[%clk 0:03:01]}  Nbd7 {[%clk 0:02:58]} 7. O-O {[%clk 0:03:02]}  c6 {[%clk 0:02:59]} 8. Re1 {[%clk 0:03:00]}  e5 {[%clk 0:02:58]} 9. Bf1 {[%clk 0:02:59]}  Re8 {[%clk 0:02:48]} 10. d5 {[%clk 0:02:36]}  c5 {[%clk 0:02:37]} 11. a3 {[%clk 0:02:28]}  Nh5 {[%clk 0:02:21]} 12. Qc2 {[%clk 0:02:24]}  Rf8 {[%clk 0:02:21]} 13. b4 {[%clk 0:02:23]}  f5 {[%clk 0:02:18]} 14. Bg5 {[%clk 0:02:21]}  Bf6 {[%clk 0:02:15]} 15. Bxf6 {[%clk 0:02:19]}  Qxf6 {[%clk 0:02:14]} 16. Nb5 {[%clk 0:02:14]}  a6 {[%clk 0:02:06]} 17. Nc7 {[%clk 0:02:12]}  Rb8 {[%clk 0:02:06]} 18. Ne6 {[%clk 0:02:12]}  Rf7 {[%clk 0:02:06]} 19. bxc5 {[%clk 0:02:03]}  Nxc5 {[%clk 0:01:58]} 20. Nxc5 {[%clk 0:02:02]}  dxc5 {[%clk 0:01:59]} 21. Qc3 {[%clk 0:02:00]}  fxe4 {[%clk 0:01:51]} 22. Rxe4 {[%clk 0:01:56]}  Bf5 {[%clk 0:01:26]} 23. Rxe5 {[%clk 0:01:55]}  Re7 {[%clk 0:01:20]} 24. Rae1 {[%clk 0:01:52]}  Rxe5 {[%clk 0:01:14]} 25. Qxe5 {[%clk 0:01:53]}  Rd8 {[%clk 0:00:52]} 26. Qxf6 {[%clk 0:01:49]}  Nxf6 {[%clk 0:00:53]} 27. Re7 {[%clk 0:01:49]}  Rd7 {[%clk 0:00:47]} 28. Re1 {[%clk 0:01:39]}  Be4 {[%clk 0:00:43]} 29. Ng5 {[%clk 0:01:37]}  Bf5 {[%clk 0:00:37]} 30. f3 {[%clk 0:01:36]}  h6 {[%clk 0:00:35]} 31. Ne6 {[%clk 0:01:35]}  b6 {[%clk 0:00:29]} 32. Kf2 {[%clk 0:01:24]}  Kf7 {[%clk 0:00:29]} 33. g4 {[%clk 0:01:21]}  Bc2 {[%clk 0:00:21]} 34. Rc1 {[%clk 0:01:14]}  Ba4 {[%clk 0:00:14]} 35. Bd3 {[%clk 0:01:09]}  g5 {[%clk 0:00:13]} 36. Bf5 {[%clk 0:01:08]}  Rd6 {[%clk 0:00:10]} 37. Nc7 {[%clk 0:00:53]}  b5 {[%clk 0:00:05]} 38. cxb5 {[%clk 0:00:47]}  axb5 {[%clk 0:00:06]} 39. Rxc5 {[%clk 0:00:47]}  Nxd5 {[%clk 0:00:01]} 40. Nxd5 {[%clk 0:00:45]} 1-0


[Site "https://www.chess.com"]